fUST/lending_fUST_20250423
["ID","MTS","AMOUNT","RATE_DAILY","PERIOD"]
[358743565,1745409043876,-873.74,0.00019898,2]
[358743567,1745409043886,-873.74,0.00019898,2]
[358743569,1745409043896,-500.0,0.00019898,2]
[358743571,1745409043905,-500.0,0.00019898,2]
[358743573,1745409043915,-500.0,0.00019898,2]
[358743575,1745409043928,-500.0,0.00019898,2]
[358743577,1745409043938,-500.0,0.00019898,2]
[358743579,1745409043947,-500.0,0.00019898,2]
[358743580,1745409043956,-500.0,0.00019898,2]
[358743581,1745409043965,-500.0,0.00019898,2]
[358743582,1745409043974,-500.0,0.00019898,2]
[358743584,1745409043984,-500.0,0.00019898,2]
[358743586,1745409043994,-500.0,0.00019898,2]
[358743588,1745409044004,-500.0,0.00019898,2]
[358743590,1745409044014,-500.0,0.00019898,2]
[358743592,1745409044024,-626.18,0.00019898,2]
[358743594,1745409044034,-500.0,0.00019898,2]
[358743595,1745409044044,-504.56707298,0.00019898,2]
[358743596,1745409044053,-500.0,0.00019898,2]
[358743598,1745409044063,-500.0,0.00019898,2]
[358743600,1745409044073,-500.0,0.00019898,2]
[358743602,1745409044082,-500.0,0.00019898,2]
[358743604,1745409044093,-500.0,0.00019898,2]
[358743606,1745409044102,-500.0,0.00019898,2]
[358743608,1745409044112,-1876.76,0.00019898,2]
[358743610,1745409044121,-500.0,0.00019898,2]
[358743612,1745409044131,-500.0,0.00019898,2]
[358743615,1745409044141,-520.5411885,0.00019898,2]
[358743618,1745409044150,-500.0,0.00019898,2]
[358743620,1745409044160,-507.32287152,0.00019898,2]
[358743623,1745409044169,-3978.06,0.00019898,2]
[358743626,1745409044179,-500.0,0.00019898,2]
[358743629,1745409044188,-500.0,0.00019898,2]
[358743632,1745409044197,-503.34302427,0.00019898,2]
[358743635,1745409044207,-518.69,0.00019898,2]
[358743638,1745409044217,-3799.54,0.00019898,2]
[358743642,1745409044227,-500.0,0.00019898,2]
[358743645,1745409044237,-500.0,0.00019898,2]
[358743648,1745409044247,-500.0,0.00019898,2]
[358743651,1745409044257,-500.0,0.00019898,2]
[358743653,1745409044267,-504.2464914,0.00019898,2]
[358743655,1745409044277,-505.27351544,0.00019898,2]
[358743657,1745409044287,-500.0,0.00019898,2]
[358743659,1745409044297,-600.36,0.00019898,2]
[358743661,1745409044307,-500.0,0.00019898,2]
[358743663,1745409044317,-500.0,0.00019898,2]
[358743665,1745409044327,-500.0,0.00019898,2]
[358743667,1745409044338,-500.0,0.00019898,2]
[358743669,1745409044348,-500.0,0.00019898,2]
[358743671,1745409044357,-500.0,0.00019898,2]
[358743673,1745409044367,-510.21,0.00019898,2]
[358743675,1745409044376,-500.0,0.00019898,2]
[358743677,1745409044386,-500.59206856,0.00019898,2]
[358743679,1745409044396,-500.43082469,0.00019898,2]
[358743681,1745409044405,-500.0,0.00019898,2]
[358743683,1745409044415,-500.0,0.00019898,2]
[358743685,1745409044424,-151.0,0.00019898,2]
[358743687,1745409044434,-198.0,0.00019898,2]
[358743689,1745409044443,-500.0,0.00019898,2]
[358743691,1745409044453,-151.0,0.00019898,2]
[358743693,1745409044463,-151.0,0.00019898,2]
[358743695,1745409044473,-151.0,0.00019898,2]
[358743697,1745409044482,-1468.89,0.00019898,2]
[358743699,1745409044492,-158.514108,0.00019898,2]
[358743701,1745409044501,-151.0,0.00019898,2]
[358743703,1745409044510,-500.0,0.00019898,2]
[358743705,1745409044520,-500.0,0.00019899,2]
[358743707,1745409044529,-500.0,0.00019899,2]
[358743709,1745409044539,-643.83,0.00019899,2]
[358743711,1745409044548,-873.74,0.00019899,2]
[358743713,1745409044558,-873.74,0.00019899,2]
[358743715,1745409044567,-500.0,0.00019899,2]
[358743717,1745409044580,-500.0,0.00019899,2]
[358743719,1745409044591,-1468.89,0.00019899,2]
[358743721,1745409044600,-500.0,0.000199,2]
[358743723,1745409044610,-500.0,0.000199,2]
[358743725,1745409044620,-500.0,0.000199,2]
[358743727,1745409044629,-500.0,0.000199,2]
[358743729,1745409044638,-500.0,0.000199,2]
[358743731,1745409044648,-500.0,0.000199,2]
[358743733,1745409044657,-500.0,0.000199,2]
[358743735,1745409044666,-643.83,0.000199,2]
[358743737,1745409044676,-643.83,0.000199,2]
[358743739,1745409044685,-873.74,0.000199,2]
[358743741,1745409044695,-873.74,0.000199,2]
[358743743,1745409044704,-873.74,0.000199,2]
[358743745,1745409044713,-873.74,0.000199,2]
[358743747,1745409044723,-873.74,0.000199,2]
[358743749,1745409044733,-873.74,0.000199,2]
[358743751,1745409044742,-873.74,0.000199,2]
[358743753,1745409044752,-500.0,0.000199,2]
[358743755,1745409044761,-500.0,0.000199,2]
[358743757,1745409044771,-500.0,0.000199,2]
[358743759,1745409044781,-500.0,0.000199,2]
[358743761,1745409044791,-500.0,0.000199,2]
[358743763,1745409044800,-500.0,0.000199,2]
[358743765,1745409044809,-500.0,0.000199,2]
[358743767,1745409044820,-1468.89,0.000199,2]
[358743769,1745409044830,-1468.89,0.000199,2]
[358743771,1745409044840,-500.0,0.00019901,2]
[358743773,1745409044854,-327.87889805,0.00019901,2]
[358743775,1745409044863,-614.73341292,0.00019901,2]
[358743777,1745409044873,-500.0,0.00019901,2]
[358743779,1745409044882,-500.0,0.00019901,2]
[358743781,1745409044893,-500.0,0.00019901,2]
[358743783,1745409044902,-500.0,0.00019901,2]
[358743785,1745409044912,-500.0,0.00019901,2]
[358743787,1745409044923,-500.0,0.00019901,2]
[358743789,1745409044933,-500.0,0.00019901,2]
[358743791,1745409044942,-396.06373487,0.00019901,2]
[358743793,1745409044952,-873.74,0.00019901,2]
[358743795,1745409044961,-873.74,0.00019901,2]
[358743797,1745409044971,-873.74,0.00019901,2]
[358743799,1745409044980,-873.74,0.00019901,2]
[358743801,1745409044989,-873.74,0.00019901,2]
[358743803,1745409044999,-873.74,0.00019901,2]
[358743805,1745409045009,-873.74,0.00019901,2]
[358743808,1745409045019,-873.74,0.00019901,2]
[358743810,1745409045029,-873.74,0.00019901,2]
[358743812,1745409045039,-873.74,0.00019901,2]
[358743814,1745409045048,-873.74,0.00019901,2]
[358743816,1745409045058,-873.74,0.00019901,2]
[358743818,1745409045067,-873.89185852,0.00019901,2]
[358743820,1745409045077,-500.0,0.00019901,2]
[358743821,1745409045087,-500.0,0.00019901,2]
[358743823,1745409045096,-500.0,0.00019901,2]
[358743825,1745409045106,-500.0,0.00019901,2]
[358743827,1745409045116,-500.0,0.00019901,2]
[358743829,1745409045125,-500.0,0.00019901,2]
[358743831,1745409045134,-500.0,0.00019901,2]
[358743833,1745409045144,-500.0,0.00019901,2]
[358743835,1745409045154,-199.09986419,0.00019901,2]
[358743837,1745409045163,-209.6939992,0.00019933,2]
[358743839,1745409045173,-156.587,0.00019941,2]
[358743842,1745409045183,-162.380719,0.00019996,2]
[358743843,1745409045192,-1010.08192785,0.0002,10]
[358743846,1745409045202,-168.3888056,0.00020051,2]
[358743848,1745409045211,-209.6939992,0.0002007,2]
[358743849,1745409045221,-151.0,0.000201,4]
[358743851,1745409045231,-349.53151647,0.00020106,2]
[358743853,1745409045241,-500.0,0.00020168,2]
[358743856,1745409045251,-500.0,0.00020168,2]
[358743858,1745409045260,-997.08,0.00020168,2]
[358743859,1745409045270,-500.0,0.00020168,2]
[358743861,1745409045279,-2322.97,0.00020168,2]
[358743863,1745409045289,-500.0,0.00020168,2]
[358743865,1745409045299,-346.84260259,0.00020168,2]
[358743867,1745409045309,-528.27,0.00020168,2]
[358743869,1745409045318,-4707.47,0.00020168,2]
[358743871,1745409045327,-507.1477998,0.00020168,2]
[358743873,1745409045336,-500.0,0.00020168,2]
[358743875,1745409045346,-500.0,0.00020168,2]
[358743877,1745409045355,-14891.66,0.00020168,2]
[358743879,1745409045364,-11011.51,0.00020168,2]
[358743881,1745409045374,-1350.35,0.00020168,2]
[358743883,1745409045385,-547.9,0.00020168,2]
[358743886,1745409045394,-601.61,0.00020168,2]
[358743888,1745409045404,-500.0,0.00020168,2]
[358743889,1745409045413,-500.0,0.00020168,2]
[358743892,1745409045423,-1218.82,0.00020168,2]
[358743894,1745409045432,-1651.3,0.00020168,2]
[358743896,1745409045442,-500.0,0.00020168,2]
[358743898,1745409045451,-1108.5,0.00020168,2]
[358743900,1745409045461,-500.0,0.00020169,2]
[358743902,1745409045470,-648.29,0.00020169,2]
[358743904,1745409045480,-500.0,0.00020169,2]
[358743905,1745409045490,-590.84,0.00020169,2]
[358743908,1745409045500,-500.0,0.00020169,2]
[358743910,1745409045509,-500.0,0.00020169,2]
[358743913,1745409045519,-1009.48,0.00020169,2]
[358743915,1745409045528,-500.0,0.00020169,2]
[358743916,1745409045537,-500.0,0.00020169,2]
[358743919,1745409045547,-500.0,0.00020169,2]
[358743921,1745409045557,-500.0,0.00020169,2]
[358743922,1745409045567,-607.89,0.00020169,2]
[358743925,1745409045576,-500.0,0.00020169,2]
[358743927,1745409045587,-1167.69,0.00020169,2]
[358743929,1745409045597,-500.0,0.00020169,2]
[358743931,1745409045607,-631.84,0.00020169,2]
[358743933,1745409045616,-500.0,0.00020169,2]
[358743935,1745409045626,-500.0,0.00020169,2]
[358743937,1745409045635,-500.0,0.00020169,2]
[358743939,1745409045645,-931.95,0.00020169,2]
[358743941,1745409045655,-500.0,0.00020169,2]
[358743943,1745409045664,-638.56716728,0.00020169,2]
[358743945,1745409045674,-500.0,0.00020169,2]
[358743948,1745409045684,-500.0,0.00020169,2]
[358743951,1745409045694,-500.0,0.00020169,2]
[358743953,1745409045704,-500.0,0.00020169,2]
[358743955,1745409045713,-500.0,0.00020169,2]
[358743957,1745409045723,-1371.53,0.00020169,2]
[358743959,1745409045732,-500.0,0.00020169,2]
[358743961,1745409045742,-272.1972822,0.00020169,2]
[358743963,1745409045751,-500.0,0.00020169,2]
[358743965,1745409045761,-2516.03,0.00020169,2]
[358743967,1745409045771,-500.0,0.00020169,2]
[358743969,1745409045780,-500.0,0.00020169,2]
[358743971,1745409045790,-500.0,0.00020169,2]
[358743973,1745409045799,-1136.14,0.00020169,2]
[358743974,1745409045810,-928.93,0.00020169,2]
[358743976,1745409045819,-500.0,0.00020169,2]
[358743978,1745409045829,-636.83,0.00020169,2]
[358743980,1745409045839,-198.11882466,0.00020169,2]
[358743982,1745409045850,-500.0,0.00020169,2]
[358743984,1745409045860,-2316.28,0.00020169,2]
[358743986,1745409045870,-597.77,0.00020169,2]
[358743988,1745409045879,-500.0,0.00020169,2]
[358743990,1745409045888,-500.0,0.00020169,2]
[358743991,1745409045899,-500.0,0.00020169,2]
[358743993,1745409045910,-569.22,0.00020169,2]
[358743996,1745409045920,-500.0,0.00020169,2]
[358743998,1745409045932,-500.0,0.00020169,2]
[358744000,1745409045942,-500.0,0.00020169,2]
[358744002,1745409045951,-500.0,0.00020169,2]
[358744003,1745409045961,-500.0,0.00020169,2]
[358744005,1745409045971,-500.0,0.00020169,2]
[358744007,1745409045981,-500.0,0.00020169,2]
[358744009,1745409045990,-500.0,0.00020169,2]
[358744011,1745409046000,-500.0,0.00020169,2]
[358744013,1745409046010,-964.89,0.00020169,2]
[358744015,1745409046020,-500.0,0.00020169,2]
[358744017,1745409046030,-500.0,0.00020169,2]
[358744019,1745409046042,-500.0,0.00020169,2]
[358744021,1745409046053,-500.0,0.00020169,2]
[358744023,1745409046063,-850.01,0.00020169,2]
[358744025,1745409046074,-4123.12,0.00020169,2]
[358744027,1745409046085,-500.0,0.00020169,2]
[358744029,1745409046094,-500.08,0.00020169,2]
[358744031,1745409046103,-500.0,0.00020169,2]
[358744033,1745409046113,-280.9032439,0.00020169,2]
[358744035,1745409046123,-500.0,0.00020169,2]
[358744037,1745409046132,-586.57,0.00020169,2]
[358744039,1745409046141,-500.0,0.00020169,2]
[358744041,1745409046151,-508.10628454,0.00020169,2]
[358744043,1745409046161,-198.19326537,0.00020169,2]
[358744060,1745409046313,-500.0,0.00020169,2]
[358744062,1745409046323,-500.0,0.00020169,2]
[358744064,1745409046333,-516.53381204,0.00020169,2]
[358744066,1745409046343,-603.84945471,0.00020169,2]
[358744068,1745409046353,-500.0,0.00020169,2]
[358744070,1745409046362,-808.16,0.00020169,2]
[358744072,1745409046371,-500.0,0.00020169,2]
[358744073,1745409046381,-515.7740399,0.00020169,2]
[358744075,1745409046390,-500.0,0.00020169,2]
[358744077,1745409046399,-500.0,0.00020169,2]
[358744079,1745409046409,-500.0,0.00020169,2]
[358744081,1745409046420,-831.2,0.00020169,2]
[358744083,1745409046431,-500.0,0.00020169,2]
[358744085,1745409046440,-500.0,0.00020169,2]
[358744087,1745409046450,-500.0,0.00020169,2]
[358744089,1745409046461,-1316.21,0.00020169,2]
[358744091,1745409046471,-500.0,0.00020169,2]
[358744093,1745409046481,-407.12688025,0.00020169,2]
[358744095,1745409046490,-500.0,0.00020169,2]
[358744097,1745409046508,-500.0,0.00020169,2]
[358744099,1745409046519,-500.0,0.0002017,2]
[358744101,1745409046528,-239.80631411,0.0002017,2]
[358744103,1745409046538,-500.0,0.0002017,2]
[358744105,1745409046548,-500.0,0.0002017,2]
[358744107,1745409046558,-500.0,0.0002017,2]
[358744109,1745409046570,-500.0,0.0002017,2]
[358744111,1745409046580,-500.0,0.0002017,2]
[358744113,1745409046590,-500.0,0.0002017,2]
[358744115,1745409046599,-643.83,0.0002017,2]
[358744117,1745409046609,-643.83,0.0002017,2]
[358744119,1745409046619,-960.37,0.0002017,2]
[358744121,1745409046629,-500.0,0.0002017,2]
[358744123,1745409046638,-500.0,0.0002017,2]
[358744125,1745409046647,-1093.18,0.0002017,2]
[358744127,1745409046657,-500.0,0.0002017,2]
[358744129,1745409046666,-500.0,0.0002017,2]
[358744131,1745409046675,-500.0,0.0002017,2]
[358744133,1745409046684,-904.01,0.0002017,2]
[358744135,1745409046693,-500.0,0.0002017,2]
[358744137,1745409046703,-653.05,0.0002017,2]
[358744138,1745409046712,-1079.36,0.0002017,2]
[358744140,1745409046722,-500.0,0.0002017,2]
[358744142,1745409046731,-500.0,0.0002017,2]
[358744144,1745409046741,-647.94,0.0002017,2]
[358744146,1745409046750,-500.0,0.0002017,2]
[358744148,1745409046759,-500.0,0.0002017,2]
[358744150,1745409046769,-500.0,0.0002017,2]
[358744152,1745409046779,-500.0,0.0002017,2]
[358744154,1745409046789,-500.0,0.0002017,2]
[358744156,1745409046798,-757.32,0.0002017,2]
[358744158,1745409046809,-244.23553691,0.0002017,2]
[358744160,1745409046818,-500.0,0.0002017,2]
[358744162,1745409046826,-500.0,0.0002017,2]
[358744163,1745409046836,-500.0,0.0002017,2]
[358744165,1745409046848,-500.0,0.0002017,2]
[358744167,1745409046859,-500.0,0.0002017,2]
[358744169,1745409046869,-500.0,0.0002017,2]
[358744171,1745409046879,-500.0,0.0002017,2]
[358744173,1745409046889,-500.0,0.0002017,2]
[358744175,1745409046902,-500.0,0.0002017,2]
[358744177,1745409046912,-500.0,0.0002017,2]
[358744179,1745409046922,-500.0,0.0002017,2]
[358744181,1745409046932,-500.0,0.0002017,2]
[358744182,1745409046941,-500.0,0.0002017,2]
[358744184,1745409046951,-500.0,0.0002017,2]
[358744186,1745409046961,-500.0,0.0002017,2]
[358744188,1745409046971,-177.81416461,0.0002017,2]
[358744190,1745409046981,-500.0,0.0002017,2]
[358744192,1745409046990,-500.0,0.0002017,2]
[358744194,1745409046999,-500.0,0.0002017,2]
[358744196,1745409047009,-500.0,0.0002017,2]
[358744198,1745409047018,-500.0,0.0002017,2]
[358744200,1745409047028,-500.0,0.0002017,2]
[358744201,1745409047037,-892.77041981,0.0002017,2]
[358744228,1745409047312,-5115.28958019,0.0002017,2]
[358744230,1745409047322,-500.0,0.0002017,2]
[358744232,1745409047332,-1468.89,0.0002017,2]
[358744234,1745409047346,-994.36764363,0.0002017,2]
[358744264,1745409047653,-310.72043055,0.00019893,2]
[358744266,1745409047663,-500.0,0.00019894,2]
[358744268,1745409047674,-151.0,0.00019897,2]
[358744270,1745409047684,-500.0,0.00020168,2]
[358744272,1745409047695,-474.52235637,0.0002017,2]
[358744274,1745409047704,-122.29283389,0.0002017,2]
[358744340,1745409048403,-377.70716611,0.0002017,2]
[358744342,1745409048414,-1275.26,0.0002017,2]
[358744344,1745409048424,-500.0,0.0002017,2]
[358744346,1745409048434,-745.74,0.0002017,2]
[358744347,1745409048445,-500.0,0.0002017,2]
[358744349,1745409048455,-500.0,0.0002017,2]
[358744351,1745409048466,-601.46,0.0002017,2]
[358744353,1745409048476,-500.0,0.0002017,2]
[358744355,1745409048487,-500.0,0.0002017,2]
[358744356,1745409048496,-500.0,0.0002017,2]
[358744357,1745409048506,-500.0,0.0002017,2]
[358744358,1745409048517,-500.0,0.0002017,2]
[358744359,1745409048526,-500.0,0.0002017,2]
[358744360,1745409048536,-500.0,0.0002017,2]
[358744361,1745409048546,-570.74764126,0.0002017,2]
[358744362,1745409048556,-500.0,0.0002017,2]
[358744363,1745409048566,-951.57,0.0002017,2]
[358744364,1745409048576,-500.0,0.0002017,2]
[358744365,1745409048586,-500.0,0.0002017,2]
[358744366,1745409048597,-3606.79,0.0002017,2]
[358744367,1745409048607,-500.0,0.0002017,2]
[358744368,1745409048617,-1591.05,0.0002017,2]
[358744369,1745409048628,-500.0,0.0002017,2]
[358744370,1745409048638,-500.0,0.0002017,2]
[358744371,1745409048647,-500.0,0.0002017,2]
[358744372,1745409048657,-500.0,0.0002017,2]
[358744373,1745409048667,-500.0,0.0002017,2]
[358744374,1745409048677,-508.97237113,0.0002017,2]
[358744375,1745409048687,-514.26883737,0.0002017,2]
[358744376,1745409048696,-500.0,0.0002017,2]
[358744377,1745409048706,-506.13051729,0.0002017,2]
[358744378,1745409048716,-500.0,0.0002017,2]
[358744380,1745409048725,-529.53233913,0.0002017,2]
[358744382,1745409048735,-543.98,0.0002017,2]
[358744384,1745409048745,-3689.22,0.0002017,2]
[358744386,1745409048755,-994.31,0.0002017,2]
[358744387,1745409048764,-500.0,0.0002017,2]
[358744390,1745409048774,-311.84839793,0.0002017,2]
[358744392,1745409048784,-500.0,0.0002017,2]
[358744393,1745409048795,-356.81285564,0.0002017,2]
[358744396,1745409048805,-500.0,0.0002017,2]
[358744398,1745409048816,-455.76964134,0.0002017,2]
[358744400,1745409048827,-151.0,0.00020171,2]
[358744401,1745409048836,-151.0,0.00020171,2]
[358744404,1745409048854,-245.0,0.00020171,2]
[358744406,1745409048864,-247.96054741,0.00020171,2]
[358744407,1745409048874,-151.0,0.00020171,2]
[358744409,1745409048885,-500.0,0.00020171,2]
[358744411,1745409048895,-500.0,0.00020171,2]
[358744413,1745409048906,-643.83,0.00020171,2]
[358744415,1745409048916,-643.83,0.00020171,2]
[358744417,1745409048928,-643.83,0.00020171,2]
[358744419,1745409048938,-643.83,0.00020171,2]
[358744421,1745409048948,-643.83,0.00020171,2]
[358744423,1745409048958,-98.85884829,0.00020171,2]
[358744454,1745409049262,-500.0,0.00019894,2]
[358744456,1745409049273,-336.83456465,0.00019895,2]
[358744458,1745409049283,-403.53853194,0.00019895,2]
[358745321,1745409077196,-279.21156716,0.00019032,2]
[358745322,1745409087692,-209.23651307,0.00019032,2]
[358745323,1745409095835,-63.93989767,0.00019032,2]
[358745324,1745409095862,-266.44219038,0.00019893,2]
[358745325,1745409103746,-152.0,0.00019893,2]
[358745326,1745409106779,-150.90408628,0.00019786,2]
[358745330,1745409121983,-291.90460042,0.00019786,2]
[358745331,1745409125052,-202.91228764,0.00019786,2]
[358745332,1745409153269,-199.94702426,0.00019786,2]
[358745333,1745409153862,-154.3320014,0.00019786,2]
[358745334,1745409153889,-45.61502286,0.00019786,2]
[358745335,1745409161249,-197.83608001,0.00019786,2]
[358745336,1745409167014,-160.0,0.00018896,2]
[358745338,1745409172511,-90.0,0.00018896,2]
[358745339,1745409172535,-6.54889713,0.00019786,2]
[358745340,1745409172560,-81.55780962,0.00019893,2]
[358745341,1745409172583,-47.84724074,0.00019893,2]
[358745342,1745409177847,-202.85854791,0.00019893,2]
[358745345,1745409250683,-339.88893851,0.00018932,2]
[358745346,1745409258801,-62.11106149,0.00018932,2]
[358745347,1745409258826,-89.88893851,0.00019797,2]
[358745348,1745409312552,-83.20899959,0.00019797,2]
[358745349,1745409312792,-81.78961822,0.00019892,2]
[358745350,1745409317743,-199.9956401,0.00019892,2]
[358745351,1745409363651,-200.0,0.00019891,2]
[358745352,1745409372108,-100.0,0.00019891,2]
[358745353,1745409372134,-133.8571398,0.00019892,2]
[358745354,1745409380955,-183.8459,0.00019892,2]
[358745355,1745409386774,-150.11943447,0.00019793,2]
[358745356,1745409398460,-153.05344201,0.00019792,2]
[358745357,1745409398489,-44.82712352,0.00019793,2]
[358745358,1745409404751,-152.0,0.00019793,2]
[358745359,1745409409169,-266.04171689,0.00019793,2]
[358745363,1745409491175,-166.5654824,0.00018893,2]
[358745364,1745409540481,-152.0,0.00018893,2]
[358745365,1745409549603,-199.71021879,0.00018892,2]
[358745367,1745409582274,-100.28978121,0.00018892,2]
[358745368,1745409582299,-81.69940365,0.00018893,2]
[358745369,1745409601523,-248.29405847,0.00018893,2]
[358745370,1745409609680,-300.0,0.00018892,2]
[358745371,1745409609704,-80.56007438,0.00018892,2]
[358745372,1745409614573,-220.07641515,0.00018386,2]
[358745373,1745409625033,-286.39709466,0.00018386,2]
[358745374,1745409635460,-20.26488984,0.00018386,2]
[358745375,1745409635485,-170.22687027,0.00018793,2]
[358745376,1745409635511,-23.11114523,0.00018892,2]
[358745377,1745409637917,-213.60290534,0.00018892,2]
[358745378,1745409640057,-193.3380155,0.00018892,2]
[358745379,1745409645257,-389.38785955,0.00018892,2]
[358745380,1745409645282,-45.85326035,0.00018893,2]
[358745381,1745409651014,-300.0,0.00018893,2]
[358745382,1745409658387,-151.5625425,0.00018709,2]
[358745384,1745409666779,-252.9808,0.00018709,2]
[358745385,1745409673399,-178.96155116,0.00018709,2]
[358745386,1745409701002,-3698.0,0.00018709,2]
[358745387,1745409725585,-55.28796074,0.00018709,2]
[358745388,1745409725612,-115.05475775,0.00018891,2]
[358745389,1745409726189,-170.34271849,0.00018891,2]
[358745390,1745409753840,-14.60252376,0.00018891,2]
[358745391,1745409753864,-193.00431498,0.00018892,2]
[358745393,1745409784704,-152.0,0.00018891,2]
[358745397,1745409836167,-148.0,0.00018891,2]
[358745398,1745409836198,-306.99568502,0.00018892,2]
[358745399,1745409836228,-210.7024085,0.00018892,2]
[358745400,1745409843682,-300.0,0.00018891,2]
[358745401,1745409847619,-172.33155525,0.00018892,2]
[358745402,1745409856016,-500.0,0.00018892,2]
[358745405,1745409859731,-417.79204764,0.00018793,2]
[358745406,1745409861886,-417.79204764,0.00018793,2]
[358745409,1745409879039,-186.97854048,0.00018793,2]
[358745410,1745409879065,-23.65382978,0.00018891,2]
[358745413,1745409892585,-179.25845786,0.00018891,2]
[358745414,1745409892616,-120.74154214,0.00018891,2]
[358745416,1745409903423,-200.0,0.0001889,2]
[358745418,1745409910126,-500.0,0.0001889,2]
[358745421,1745409949021,-200.0,0.0001889,2]
[358745422,1745409949046,-100.0,0.0001889,2]
[358745424,1745409970155,-379.25845786,0.00018891,2]
[358745425,1745409970185,-43.49446165,0.00018891,2]
[358745426,1745409989853,-172.34898613,0.00018793,2]
[358745427,1745409993992,-216.0080295,0.0001889,2]
[358745428,1745410013856,-83.9919705,0.0001889,2]
[358745429,1745410013885,-104.36504513,0.00018891,2]
[358745430,1745410027209,-159.64298437,0.00018891,2]
[358745431,1745410029367,-152.0,0.00018891,2]
[358745434,1745410084888,-174.7515356,0.0001889,2]
[358745435,1745410092157,-125.2484644,0.0001889,2]
[358745436,1745410092188,-92.94633908,0.00018891,2]
[358745437,1745410099252,-152.0,0.00018891,2]
[358745438,1745410112297,-183.34613243,0.00018891,2]
[358745439,1745410116932,-152.0,0.0001889,2]
[358745445,1745410203916,-160.35266277,0.00018889,2]
[358745446,1745410204370,-139.64733723,0.00018889,2]
[358745447,1745410204403,-20.70532554,0.0001889,2]
[358745448,1745410208466,-209.23651307,0.00018889,2]
[358745449,1745410219991,-283.9153967,0.00018889,2]
[358745453,1745410232487,-406.84809023,0.00018889,2]
[358745454,1745410232497,-31394.53554454,0.0001889,2]
[358745455,1745410232509,-16294.40671718,0.0001889,2]
[358745456,1745410232520,-17571.99183593,0.00018893,2]
[358745457,1745410232548,-154.47427401,0.00018893,2]
[358745458,1745410232565,-6179.12168519,0.00018893,2]
[358745459,1745410232575,-574.23432854,0.00018893,2]
[358745460,1745410232585,-677.77775996,0.00019078,2]
[358745461,1745410232595,-151.0,0.00019166,2]
[358745462,1745410232604,-500.0,0.00019173,2]
[358745463,1745410232613,-500.0,0.00019173,2]
[358745464,1745410232623,-500.0,0.00019173,2]
[358745465,1745410232633,-500.0,0.00019173,2]
[358745466,1745410232642,-500.0,0.00019173,2]
[358745467,1745410232652,-163.8783748,0.00019173,2]
[358745468,1745410232662,-500.0,0.00019173,2]
[358745469,1745410232671,-500.0,0.00019173,2]
[358745470,1745410232680,-500.0,0.00019173,2]
[358745472,1745410232690,-500.0,0.00019173,2]
[358745474,1745410232700,-300.46712725,0.00019173,2]
[358745476,1745410232709,-500.0,0.00019173,2]
[358745478,1745410232718,-500.0,0.00019173,2]
[358745480,1745410232727,-500.0,0.00019173,2]
[358745482,1745410232737,-500.0,0.00019173,2]
[358745483,1745410232746,-500.0,0.00019173,2]
[358745484,1745410232755,-500.0,0.00019173,2]
[358745485,1745410232765,-501.9354527,0.00019173,2]